bitfinex-derivatives/quotes_BTCF0:USTF0_20250108
["timestamp","ask_amount","ask_price","bid_price","bid_amount"]
[1736360299909,0.2,94600.0,94579.0,0.3608]
[1736360300107,0.18954614,94592.0,94590.0,0.55444955]
[1736360300308,0.18954614,94592.0,94590.0,0.3608]
[1736360300503,0.18954614,94592.0,94590.0,0.31276881]
[1736360300709,0.18954614,94592.0,94591.0,0.052872]
[1736360301217,0.18954614,94592.0,94591.0,0.05282897]
[1736360301421,0.008,94592.0,94591.0,0.05282897]
[1736360301616,0.2,94600.0,94591.0,0.05282897]
[1736360301806,0.2,94600.0,94599.0,0.413667]
[1736360302513,0.2,94600.0,94599.0,1.913667]
[1736360302706,0.252867,94600.0,94599.0,0.3608]
[1736360302909,0.5608,94600.0,94590.0,0.001]
[1736360303110,0.009,94592.0,94591.0,0.001]
[1736360303721,0.052871,94593.0,94586.0,0.052875]
[1736360303912,0.052871,94593.0,94581.0,0.37994479]
[1736360304112,0.2,94600.0,94582.0,0.052877]
[1736360304315,0.2,94600.0,94590.0,0.19364955]
[1736360304507,0.2,94600.0,94598.0,0.052868]
[1736360304712,0.2,94600.0,94590.0,0.19364955]
[1736360304912,0.2,94600.0,94598.0,0.052868]
[1736360305111,0.2,94600.0,94599.0,1.8608]
[1736360305315,0.12538815,94618.0,94609.0,0.052862]
[1736360305516,0.12538815,94618.0,94617.0,0.3608]
[1736360305719,0.12538815,94618.0,94617.0,0.413657]
[1736360306615,0.12638815,94618.0,94617.0,0.413657]
[1736360306814,0.001,94618.0,94617.0,0.052857]
[1736360307117,0.001,94618.0,94617.0,1.552857]
[1736360307313,0.001,94618.0,94617.0,1.5]
[1736360307509,0.005,94618.0,94613.0,0.052859]
[1736360307718,0.05286,94613.0,94607.0,0.413663]
[1736360308018,0.052862,94609.0,94599.0,0.01891087]
[1736360308323,0.052859,94615.0,94606.0,0.3608]
[1736360308619,0.05286,94612.0,94611.0,0.05286]
[1736360308808,0.3604,94617.0,94606.0,0.3608]
[1736360309314,0.3604,94617.0,94615.0,0.052858]
[1736360309713,0.3604,94617.0,94615.0,0.413658]
[1736360309922,0.413257,94617.0,94615.0,0.052858]
[1736360310814,0.416257,94617.0,94615.0,0.052858]
[1736360311019,0.052859,94614.0,94612.0,0.3608]
[1736360312021,0.052859,94614.0,94612.0,0.41366]
[1736360312321,0.3634,94617.0,94615.0,0.052858]
[1736360312510,0.1,94620.0,94615.0,0.052858]
[1736360312711,0.001,94614.0,94613.0,0.05286]
[1736360313321,0.002,94614.0,94613.0,1.55286]
[1736360313719,0.001,94614.0,94613.0,1.55286]
[1736360314512,0.1,94620.0,94619.0,0.052856]
[1736360314716,0.052845,94639.0,94635.0,0.052847]
[1736360314912,0.1,94640.0,94629.0,0.05285]
[1736360315113,0.05285,94631.0,94630.0,1.5]
[1736360315623,0.3608,94638.0,94630.0,1.5]
[1736360315825,0.052847,94637.0,94634.0,0.052848]
[1736360316124,0.3608,94638.0,94634.0,0.052848]
[1736360316314,0.3608,94638.0,94630.0,1.50064]
[1736360316515,0.05285,94631.0,94630.0,1.5]
[1736360316711,0.05285,94631.0,94630.0,1.505]
[1736360317224,0.05285,94631.0,94630.0,1.5]
[1736360318022,0.3608,94638.0,94630.0,1.5]
[1736360318226,0.052846,94637.0,94635.0,0.052847]
[1736360318422,0.1,94640.0,94630.0,1.5006]
[1736360318612,0.1,94640.0,94639.0,0.052845]
[1736360320019,0.152844,94640.0,94639.0,1.5]
[1736360320528,0.152844,94640.0,94639.0,0.003]
[1736360320726,0.152844,94640.0,94639.0,0.004]
[1736360321031,0.513644,94640.0,94639.0,0.004]
[1736360321221,0.92546043,94640.0,94639.0,0.004]
[1736360321423,0.92546043,94640.0,94627.0,0.3608]
[1736360321623,0.56466143,94640.0,94639.0,0.003]
[1736360322316,0.513245,94640.0,94639.0,0.003]
[1736360322521,0.513245,94640.0,94639.0,0.055845]
[1736360323117,0.514245,94640.0,94639.0,0.052845]
[1736360323518,0.513245,94640.0,94639.0,0.052845]
[1736360323721,0.513245,94640.0,94639.0,0.002]
[1736360323722,0.874045,94640.0,94639.0,0.002]
[1736360324325,0.05285,94631.0,94630.0,0.05285]
[1736360324932,0.052847,94636.0,94635.0,0.052847]
[1736360325731,0.052847,94636.0,94635.0,0.04436785]
[1736360326030,0.1,94640.0,94639.0,0.054845]
[1736360326622,0.1,94640.0,94639.0,1.552845]
[1736360326929,0.15722613,94651.0,94639.0,1.552845]
[1736360327123,0.15722613,94651.0,94650.0,0.052839]
[1736360327927,0.15722613,94661.0,94650.0,0.052839]
[1736360328129,0.15722613,94661.0,94659.0,0.052834]
[1736360328333,0.15722613,94661.0,94659.0,1.552834]
[1736360329619,0.01929356,94666.0,94659.0,1.552834]
[1736360329824,0.052831,94664.0,94659.0,1.552834]
[1736360330218,0.052831,94664.0,94659.0,1.554834]
[1736360330825,0.152833,94660.0,94659.0,1.554834]
[1736360331029,0.052836,94655.0,94654.0,0.052836]
[1736360331433,0.052836,94655.0,94654.0,1.552836]
[1736360331631,0.052834,94659.0,94657.0,0.052834]
[1736360331832,0.1,94660.0,94647.0,0.01933785]
[1736360332126,0.29364955,94660.0,94645.0,0.3608]
[1736360332331,0.29364955,94660.0,94630.0,0.24649955]
[1736360332332,0.052839,94650.0,94647.0,0.05284]
[1736360332723,0.05284,94648.0,94647.0,0.05284]
[1736360334221,0.05384,94648.0,94647.0,0.06184]
[1736360334422,0.19388957,94648.0,94647.0,0.06184]
[1736360335034,0.24672957,94648.0,94647.0,1.509]
[1736360335432,0.24672957,94648.0,94647.0,1.561841]
[1736360335632,0.10424145,94648.0,94647.0,1.507]
[1736360335929,0.10424145,94648.0,94625.0,0.3608]
[1736360336135,0.3608,94642.0,94632.0,0.413649]
[1736360336325,0.052846,94638.0,94637.0,1.5]
[1736360336821,0.052846,94637.0,94624.0,0.052853]
[1736360337020,0.3608,94628.0,94624.0,0.052853]
[1736360337232,0.052852,94627.0,94625.0,1.5]
[1736360337427,0.052852,94626.0,94625.0,1.5]
[1736360337628,0.052852,94626.0,94625.0,1.552853]
[1736360338032,0.2324,94641.0,94625.0,1.5]
[1736360338232,0.3608,94639.0,94625.0,1.5]
[1736360338538,0.052852,94626.0,94625.0,1.552853]
[1736360338728,0.052852,94626.0,94625.0,1.557853]
[1736360339529,0.052852,94626.0,94625.0,1.505]
[1736360339838,0.053852,94626.0,94625.0,1.514]
[1736360340023,0.001,94626.0,94625.0,1.566853]
[1736360340733,0.15793872,94644.0,94625.0,1.927653]
[1736360340930,0.15793872,94644.0,94643.0,0.052843]
[1736360340931,0.21078072,94644.0,94643.0,0.052843]
[1736360341233,0.18952646,94648.0,94647.0,0.052841]
[1736360341424,0.24236646,94648.0,94647.0,0.052841]
[1736360341629,0.24236646,94648.0,94647.0,1.552841]
[1736360342133,0.24236646,94648.0,94647.0,1.5]
[1736360342436,0.3604,94647.0,94625.0,0.014]
[1736360342623,0.052849,94633.0,94632.0,0.052848]
[1736360342824,0.052852,94628.0,94627.0,0.052852]
[1736360343039,0.052852,94626.0,94625.0,0.005]
[1736360343228,0.3608,94629.0,94615.0,0.24576549]
[1736360343423,0.052855,94622.0,94621.0,0.052855]
[1736360343628,0.052858,94618.0,94617.0,0.052857]
[1736360343830,0.052858,94616.0,94615.0,0.24576549]
[1736360344439,0.052866,94603.0,94590.0,0.24576549]
[1736360344637,0.052854,94623.0,94590.0,0.24576549]
[1736360344638,0.3604,94615.0,94614.0,0.052859]
[1736360344827,0.001,94618.0,94617.0,0.052857]
[1736360345026,0.001,94618.0,94617.0,1.552857]
[1736360345837,0.002,94618.0,94617.0,1.58070406]
[1736360346441,0.001,94618.0,94617.0,1.57170406]
[1736360346644,0.002,94618.0,94617.0,1.58070406]
[1736360346944,0.3604,94641.0,94617.0,1.52784706]
[1736360347139,0.052852,94629.0,94628.0,0.052851]
[1736360347933,0.3608,94633.0,94617.0,1.53184706]
[1736360348438,0.3608,94633.0,94632.0,0.052849]
[1736360348638,0.3604,94641.0,94629.0,0.3608]
[1736360348835,0.3608,94642.0,94631.0,0.19364955]
[1736360349045,0.3608,94642.0,94641.0,1.552844]
[1736360349642,0.158075,94646.0,94645.0,0.052842]
[1736360349840,0.052838,94653.0,94651.0,0.052838]
[1736360350358,0.052838,94652.0,94651.0,0.052838]
[1736360350650,0.053843,94642.0,94641.0,1.508]
[1736360350841,0.001,94642.0,94641.0,1.560844]
[1736360351349,0.053843,94642.0,94641.0,1.558844]
[1736360351734,0.001,94642.0,94641.0,1.558844]
[1736360352345,0.01776203,94658.0,94641.0,1.552844]
[1736360352547,0.520035,94663.0,94653.0,0.3608]
[1736360352750,0.052835,94658.0,94657.0,0.052834]
[1736360353438,0.052835,94658.0,94657.0,1.552834]
[1736360353851,0.23612548,94658.0,94657.0,1.5]
[1736360354055,0.23612548,94658.0,94657.0,1.501]
[1736360354343,0.23612548,94658.0,94657.0,1.503]
[1736360354745,0.052835,94658.0,94657.0,1.554834]
[1736360355049,0.052835,94658.0,94657.0,1.555834]
[1736360355450,0.052833,94661.0,94659.0,0.052834]
[1736360356150,0.052829,94670.0,94669.0,0.052827]
[1736360356347,0.22111665,94673.0,94664.0,0.052831]
[1736360356348,0.052831,94665.0,94664.0,0.052831]
[1736360357253,0.052828,94669.0,94660.0,0.3608]
[1736360357554,0.052833,94661.0,94660.0,0.052833]
[1736360358243,0.10522913,94665.0,94664.0,0.052831]
[1736360358755,0.05239813,94665.0,94664.0,1.552831]
[1736360358945,0.10522913,94665.0,94664.0,1.552831]
[1736360359147,0.053831,94665.0,94664.0,1.552831]
[1736360359446,0.054831,94665.0,94664.0,1.552831]
[1736360359751,0.002,94665.0,94664.0,1.552831]
[1736360360139,0.001,94665.0,94664.0,1.552831]
[1736360360947,0.25798039,94680.0,94664.0,1.913631]
[1736360361154,0.31080239,94680.0,94679.0,0.3608]
[1736360361646,0.052828,94670.0,94669.0,0.052828]
[1736360361840,0.052828,94670.0,94669.0,1.5]
[1736360362037,0.413628,94670.0,94658.0,0.052834]
[1736360362241,0.052834,94659.0,94658.0,0.052834]
[1736360362651,0.052834,94659.0,94658.0,1.552834]
[1736360363152,0.052834,94659.0,94658.0,1.5]
[1736360363649,0.052837,94653.0,94652.0,0.052838]
[1736360363856,0.052836,94655.0,94645.0,0.052841]
[1736360364046,0.3608,94656.0,94647.0,0.05284]
[1736360364244,0.05284,94648.0,94647.0,0.05284]
[1736360364545,0.81382001,94663.0,94646.0,1.50056]
[1736360364546,0.052841,94647.0,94646.0,1.50056]
[1736360364747,0.052841,94647.0,94646.0,1.5]
[1736360365850,0.053841,94647.0,94646.0,1.506]
[1736360366848,0.053841,94647.0,94646.0,1.558841]
[1736360368050,0.053841,94647.0,94646.0,1.560841]
[1736360368242,0.8127,94663.0,94646.0,1.560841]
[1736360368243,0.1262966,94661.0,94646.0,1.508]
[1736360368443,0.1262966,94661.0,94660.0,0.052833]
[1736360368951,0.1791296,94661.0,94660.0,0.052833]
[1736360369156,0.1791296,94661.0,94660.0,1.552833]
[1736360369344,0.1801296,94661.0,94660.0,1.552833]
[1736360369742,0.053833,94661.0,94660.0,1.552833]
[1736360369948,0.052833,94661.0,94660.0,1.552833]
[1736360370649,0.052836,94656.0,94655.0,0.052836]
[1736360371256,0.052836,94656.0,94655.0,1.552836]
[1736360371462,0.052833,94661.0,94659.0,0.052833]
[1736360371646,0.052833,94660.0,94659.0,0.052833]
[1736360371843,0.3608,94663.0,94655.0,1.552836]
[1736360372048,0.052833,94661.0,94660.0,0.052833]
[1736360372247,0.052833,94661.0,94660.0,0.053833]
[1736360372854,0.052833,94661.0,94660.0,0.052833]
[1736360373256,0.09472934,94663.0,94662.0,0.052832]
[1736360373660,0.14756134,94663.0,94662.0,0.052832]
[1736360373858,0.052833,94660.0,94659.0,0.002]
[1736360374066,0.052833,94660.0,94658.0,0.052834]
[1736360374067,0.052833,94661.0,94660.0,0.001]
[1736360374559,0.052833,94661.0,94660.0,0.053833]
[1736360375863,0.052833,94661.0,94660.0,0.052833]
[1736360376164,0.10423113,94661.0,94660.0,0.052833]
[1736360376464,0.10423113,94661.0,94660.0,0.053833]
[1736360377660,0.10423113,94661.0,94660.0,0.001]
[1736360378050,0.10423113,94661.0,94655.0,0.00056]
[1736360378051,0.052836,94656.0,94655.0,0.00056]
[1736360378255,0.052843,94643.0,94642.0,0.052843]
[1736360378651,0.3608,94648.0,94622.0,0.3608]
[1736360378652,0.3604,94642.0,94622.0,0.3608]
[1736360378858,0.052854,94623.0,94622.0,0.413655]
[1736360379053,0.052854,94623.0,94622.0,1.913655]
[1736360379254,0.05285,94631.0,94628.0,0.052851]
[1736360379461,0.05285,94631.0,94630.0,0.05285]
[1736360379856,0.18270459,94641.0,94635.0,0.052847]
[1736360380059,0.18270459,94641.0,94640.0,0.052845]
[1736360380553,0.18270459,94641.0,94640.0,0.413645]
[1736360380763,0.18270459,94641.0,94640.0,1.913645]
[1736360380963,0.05139813,94641.0,94640.0,1.913645]
[1736360381159,0.05139813,94641.0,94640.0,1.92952373]
[1736360381465,0.052835,94657.0,94652.0,0.052837]
[1736360381663,0.052843,94644.0,94640.0,1.87667873]
[1736360381873,0.3608,94655.0,94640.0,1.5]
[1736360381874,0.12869299,94650.0,94640.0,1.5]
[1736360382168,0.052843,94644.0,94642.0,0.052843]
[1736360382361,0.09489896,94654.0,94640.0,1.50056]
[1736360382566,0.052844,94641.0,94640.0,1.502]
[1736360383270,0.052844,94641.0,94640.0,1.505]
[1736360383673,0.052849,94632.0,94621.0,0.413655]
[1736360383867,0.052853,94625.0,94621.0,0.413655]
[1736360384168,0.052853,94625.0,94622.0,1.5]
[1736360384371,0.052853,94624.0,94622.0,1.5]
[1736360384873,0.052853,94624.0,94622.0,1.552854]
[1736360385865,0.053853,94624.0,94622.0,1.561854]
[1736360386166,0.001,94624.0,94622.0,1.561854]
[1736360386773,0.052852,94627.0,94622.0,1.5]
[1736360386975,0.001,94624.0,94623.0,0.052854]
[1736360388271,0.052853,94625.0,94623.0,0.052854]
[1736360388467,0.001,94624.0,94623.0,0.052854]
[1736360388974,0.0948054,94629.0,94628.0,0.052851]
[1736360389562,0.1476564,94629.0,94628.0,0.052851]
[1736360390271,0.06852464,94634.0,94631.0,0.052849]
[1736360390462,0.3608,94638.0,94631.0,0.052849]
[1736360390665,0.052849,94632.0,94631.0,0.052849]
[1736360391374,0.37610893,94636.0,94635.0,0.052847]
[1736360391562,0.3608,94638.0,94637.0,0.052846]
[1736360391772,0.09592541,94640.0,94639.0,0.052845]
[1736360391773,0.0948054,94640.0,94639.0,0.052845]
[1736360392264,0.0948054,94640.0,94639.0,1.552845]
[1736360392469,4e-07,94640.0,94639.0,1.552845]
[1736360392768,0.15928494,94654.0,94653.0,0.052837]
[1736360392964,0.00112001,94654.0,94653.0,0.413637]
[1736360393372,0.12632601,94664.0,94653.0,0.413637]
[1736360393373,0.12632601,94664.0,94663.0,0.052832]
[1736360394275,0.052837,94655.0,94654.0,0.052836]
[1736360394571,0.05284,94648.0,94645.0,0.052841]
[1736360394871,0.001,94640.0,94639.0,0.061845]
[1736360395080,0.001,94640.0,94639.0,1.5776898]
[1736360395884,0.05284,94648.0,94645.0,0.052841]
[1736360396073,0.05284,94648.0,94647.0,0.052841]
[1736360396379,0.05284,94648.0,94639.0,1.5158448]
[1736360396380,0.001,94655.0,94639.0,1.5158448]
[1736360396581,0.001,94655.0,94652.0,0.052838]
[1736360396793,0.053836,94655.0,94654.0,0.003]
[1736360397079,0.001,94655.0,94654.0,0.055837]
[1736360397266,0.01600304,94672.0,94654.0,0.055837]
[1736360397471,0.05283,94666.0,94655.0,0.42]
[1736360397674,0.01600304,94672.0,94656.0,1.5]
[1736360397970,0.052826,94673.0,94668.0,0.052829]
[1736360398172,0.1,94680.0,94656.0,1.8608]
[1736360398173,0.3604,94679.0,94666.0,0.3608]
[1736360398374,0.01629119,94676.0,94671.0,0.052827]
[1736360398583,0.06911619,94676.0,94671.0,0.052827]
[1736360398876,0.06911619,94676.0,94674.0,0.052826]
[1736360399081,0.01629119,94676.0,94668.0,0.052828]
[1736360399379,0.5764,94675.0,94673.0,0.052826]
[1736360399578,0.001,94675.0,94674.0,0.052826]
[1736360400172,0.001,94675.0,94674.0,1.552826]
[1736360400773,0.3604,94679.0,94678.0,0.052823]
[1736360401482,0.3604,94679.0,94678.0,1.5]
[1736360401679,0.413223,94679.0,94678.0,1.5]
[1736360402179,0.413223,94679.0,94678.0,1.505]
[1736360402380,0.052823,94679.0,94678.0,1.505]
[1736360403884,0.052823,94679.0,94678.0,0.005]
[1736360404289,0.052823,94679.0,94678.0,0.002]
[1736360404789,0.052823,94679.0,94678.0,0.003]
[1736360404977,0.052823,94679.0,94678.0,0.005]
[1736360405681,0.053823,94679.0,94678.0,0.001]
[1736360406585,0.052828,94669.0,94668.0,1.5]
[1736360407678,0.052828,94669.0,94668.0,1.502]
[1736360407989,0.052842,94644.0,94639.0,0.052845]
[1736360408184,0.052842,94644.0,94638.0,0.2278]
[1736360408385,0.052842,94644.0,94643.0,1.68310244]
[1736360408683,0.052842,94644.0,94643.0,0.18310244]
[1736360409386,0.052842,94644.0,94643.0,1.68310244]
[1736360409681,0.052842,94644.0,94643.0,1.5]
[1736360409887,0.052842,94644.0,94643.0,1.503]
[1736360410079,0.052842,94644.0,94643.0,1.555843]
[1736360410275,0.052839,94650.0,94649.0,0.052838]
[1736360410481,0.052839,94650.0,94649.0,0.413638]
[1736360410883,0.01456654,94664.0,94644.0,0.4443]
[1736360410884,0.052842,94645.0,94644.0,0.4443]
[1736360411081,0.052842,94645.0,94644.0,1.9443]
[1736360411392,0.052842,94645.0,94644.0,1.5]
[1736360412096,0.052842,94644.0,94643.0,0.011]
[1736360412389,0.052842,94644.0,94643.0,0.003]
[1736360413587,0.3618,94645.0,94636.0,0.18310244]
[1736360413588,0.052846,94637.0,94636.0,0.18310244]
[1736360414489,0.052844,94642.0,94636.0,0.18310244]
[1736360414693,0.001,94645.0,94644.0,0.052842]
[1736360414987,0.052832,94663.0,94644.0,1.913642]
[1736360415189,0.052833,94662.0,94659.0,0.3608]
[1736360415493,0.3608,94675.0,94659.0,0.3608]
[1736360415784,0.052826,94674.0,94664.0,0.052831]
[1736360415996,0.05283,94667.0,94664.0,0.052831]
[1736360416288,0.3608,94675.0,94660.0,0.2326]
[1736360416483,0.052829,94668.0,94666.0,0.05283]
[1736360416679,0.052829,94668.0,94660.0,0.4257073]
[1736360416875,0.052829,94668.0,94661.0,0.18346423]
[1736360417287,0.052829,94668.0,94667.0,0.052829]
[1736360417791,0.001,94668.0,94666.0,0.009]
[1736360417980,0.053829,94668.0,94667.0,1.5]
[1736360418177,0.052829,94668.0,94667.0,1.5]
[1736360418379,0.053829,94668.0,94667.0,1.5]
[1736360418783,0.052829,94668.0,94667.0,1.5]
[1736360418984,0.053829,94668.0,94667.0,1.5]
[1736360419985,0.001,94668.0,94667.0,1.5]
[1736360420190,0.001,94668.0,94667.0,1.552829]
[1736360420388,0.052828,94671.0,94667.0,1.552829]
[1736360420389,0.052828,94671.0,94667.0,1.5]
[1736360420589,0.052824,94678.0,94673.0,0.052826]
[1736360420787,0.052824,94678.0,94677.0,0.413624]
[1736360421594,0.1,94680.0,94679.0,0.052823]
[1736360421991,0.1,94680.0,94677.0,0.37499346]
[1736360422186,0.052823,94678.0,94677.0,0.3608]
[1736360422894,0.052823,94678.0,94677.0,1.8608]
[1736360423482,0.053823,94678.0,94677.0,1.8688]
[1736360423690,0.001,94678.0,94677.0,1.921624]
[1736360423883,0.052812,94699.0,94682.0,0.052821]
[1736360424083,0.052821,94683.0,94682.0,0.052821]
[1736360424592,0.052818,94687.0,94686.0,0.052818]
[1736360424792,0.052818,94687.0,94678.0,0.269023]
[1736360425094,0.3608,94695.0,94678.0,0.2162]
[1736360425283,0.2,94700.0,94695.0,0.052814]
[1736360425593,0.252811,94700.0,94696.0,0.4343]
[1736360425795,0.052812,94699.0,94696.0,0.4343]
[1736360426187,0.21394931,94700.0,94696.0,0.4343]
[1736360426385,0.052813,94697.0,94696.0,0.4343]
[1736360426586,0.2,94700.0,94696.0,0.4343]
[1736360426786,0.052809,94704.0,94699.0,0.052812]
[1736360426992,0.3608,94713.0,94701.0,0.3608]
[1736360427291,0.3608,94713.0,94703.0,0.12866779]
[1736360427689,0.052802,94716.0,94714.0,0.052803]
[1736360427888,0.052802,94716.0,94715.0,0.3608]
[1736360428887,0.1,94720.0,94715.0,0.413603]
[1736360429086,0.1,94720.0,94715.0,0.3608]
[1736360429293,0.052802,94717.0,94715.0,0.3608]
[1736360429793,0.1,94720.0,94715.0,0.3608]
[1736360429993,0.1,94720.0,94716.0,0.052802]
[1736360430187,0.052801,94718.0,94716.0,0.052802]
[1736360430894,0.1,94720.0,94719.0,0.0528]
[1736360431089,0.1,94720.0,94717.0,0.208]
[1736360431090,0.001,94720.0,94717.0,0.208]
[1736360431290,0.001,94720.0,94719.0,0.0528]
[1736360431497,0.152789,94740.0,94734.0,0.052792]
[1736360431684,0.152789,94740.0,94739.0,0.3608]
[1736360432284,0.16663743,94740.0,94739.0,1.8608]
[1736360432493,0.16663743,94740.0,94739.0,0.3608]
[1736360434007,0.16863743,94740.0,94739.0,0.3608]
[1736360434392,0.16763743,94740.0,94739.0,0.3608]
[1736360434591,0.16863743,94740.0,94739.0,0.3608]
[1736360434888,0.154789,94740.0,94739.0,0.3608]
[1736360435092,0.154789,94740.0,94739.0,1.8608]
[1736360435994,0.102,94740.0,94739.0,1.8608]
[1736360436893,0.21431997,94756.0,94739.0,1.913589]
[1736360437095,0.26709997,94756.0,94755.0,0.3608]
[1736360438107,0.1,94780.0,94755.0,2.2216]
[1736360438292,0.1,94780.0,94770.0,0.48946779]
[1736360438598,0.052771,94772.0,94770.0,0.3608]
[1736360439195,0.22866779,94780.0,94755.0,0.37618177]
[1736360439391,0.05278,94756.0,94755.0,0.37562177]
[1736360439795,0.05278,94756.0,94755.0,1.87562177]
[1736360440204,0.05678,94756.0,94755.0,0.3618]
[1736360440500,0.05678,94756.0,94755.0,0.001]
[1736360441000,0.052784,94749.0,94748.0,0.3608]
[1736360441211,0.052788,94742.0,94741.0,1.50056]
[1736360441499,0.05279,94737.0,94736.0,0.3608]
[1736360441700,0.259885,94748.0,94737.0,0.05279]
[1736360441898,0.002,94756.0,94747.0,0.3608]
[1736360442091,0.052783,94753.0,94752.0,0.052782]
[1736360442290,0.05278,94756.0,94755.0,0.3608]
[1736360442904,0.05278,94756.0,94755.0,0.41358]
[1736360443101,0.052779,94759.0,94758.0,0.052779]
[1736360444599,0.055779,94759.0,94758.0,0.052779]
[1736360444900,0.053779,94759.0,94758.0,0.052779]
[1736360445096,0.055779,94759.0,94758.0,1.552779]
[1736360445997,0.003,94759.0,94758.0,1.552779]
[1736360447808,0.055778,94759.0,94758.0,1.552779]
[1736360448105,0.003,94759.0,94758.0,1.552779]
[1736360449913,0.052774,94768.0,94767.0,0.052774]
[1736360450107,0.052774,94768.0,94767.0,0.41351586]
[1736360450609,0.052774,94768.0,94767.0,0.3608]
[1736360451199,0.061774,94768.0,94767.0,0.3618]
[1736360451398,0.061774,94768.0,94767.0,0.414574]
[1736360452711,0.009,94768.0,94767.0,0.414574]
[1736360453309,0.0176,94790.0,94767.0,0.3618]
[1736360453510,0.0176,94790.0,94789.0,0.413561]
[1736360453710,0.0176,94790.0,94789.0,1.913561]
[1736360454304,0.070361,94790.0,94789.0,1.913561]
[1736360454614,0.2192,94795.0,94794.0,0.052759]
[1736360454810,0.2184,94805.0,94789.0,0.36144]
[1736360455014,0.2025,94804.0,94799.0,0.052756]
[1736360455211,0.2025,94804.0,94799.0,1.552756]
[1736360455520,0.255253,94804.0,94799.0,1.552756]
[1736360456014,0.252755,94800.0,94799.0,1.5]
[1736360457312,0.252755,94800.0,94799.0,1.552756]
[1736360457816,0.252755,94800.0,94799.0,1.5]
[1736360458014,0.254755,94800.0,94799.0,1.5]
[1736360458314,0.202,94800.0,94798.0,0.413556]
[1736360458613,0.052756,94799.0,94798.0,0.413556]
[1736360459218,0.052756,94799.0,94798.0,1.913556]
[1736360460319,0.052756,94799.0,94798.0,1.8608]
[1736360460530,0.052756,94799.0,94798.0,1.8618]
[1736360460707,0.055756,94799.0,94798.0,1.8618]
[1736360461307,0.058756,94799.0,94798.0,1.8618]
[1736360462317,0.006,94799.0,94779.0,0.3608]
[1736360462515,0.052767,94779.0,94778.0,0.18346423]
[1736360462707,0.052767,94779.0,94778.0,0.23623223]
[1736360462916,0.052767,94779.0,94778.0,2.09703223]
[1736360463114,0.052767,94779.0,94778.0,2.04426423]
[1736360463515,0.052767,94779.0,94778.0,1.68346423]
[1736360463922,0.052767,94779.0,94778.0,1.5]
[1736360465314,0.052767,94779.0,94778.0,1.502]
[1736360465514,0.052767,94779.0,94778.0,0.002]
[1736360465722,0.052771,94772.0,94771.0,0.3608]
[1736360466121,0.052771,94772.0,94771.0,1.8608]
[1736360467016,0.052771,94772.0,94771.0,1.8618]
[1736360467216,0.052771,94772.0,94771.0,1.8668]
[1736360467615,0.15816493,94777.0,94755.0,0.36136]
[1736360467826,0.05278,94756.0,94755.0,0.3608]
[1736360468514,0.052783,94750.0,94749.0,0.3608]
[1736360468716,0.052783,94750.0,94749.0,1.8608]
[1736360469526,0.052783,94750.0,94749.0,0.3608]
[1736360470515,0.052783,94750.0,94749.0,0.3658]
[1736360471021,0.052787,94743.0,94742.0,0.00056]
[1736360471412,0.052791,94736.0,94735.0,0.3608]
[1736360471613,0.264688,94742.0,94735.0,0.3608]
[1736360471817,0.052788,94742.0,94735.0,0.3608]
[1736360472024,0.052791,94737.0,94735.0,0.3608]
[1736360472327,0.3608,94742.0,94727.0,0.052796]
[1736360472528,0.3608,94742.0,94725.0,0.3608]
[1736360472529,0.052797,94726.0,94725.0,0.3608]
[1736360472726,0.0528,94719.0,94718.0,0.18346423]
[1736360474119,0.0528,94719.0,94718.0,0.006]
[1736360474120,0.0538,94719.0,94718.0,0.006]
[1736360474824,0.0538,94719.0,94718.0,0.007]
[1736360475231,0.0538,94719.0,94718.0,1.507]
[1736360476517,0.001,94719.0,94718.0,1.507]
[1736360476719,0.001,94719.0,94718.0,1.506]
[1736360477221,0.052798,94723.0,94718.0,1.5]
[1736360477417,0.4246,94729.0,94718.0,1.557801]
[1736360477622,0.4246,94729.0,94723.0,0.3608]
[1736360477823,0.052798,94724.0,94723.0,0.3608]
[1736360480320,0.052798,94724.0,94723.0,0.3628]
[1736360480722,0.3608,94727.0,94698.0,0.2071]
[1736360481031,0.3608,94727.0,94694.0,0.3608]
[1736360481032,0.052814,94695.0,94694.0,0.3608]
[1736360481834,0.052811,94701.0,94700.0,0.052811]
[1736360482030,0.2183,94718.0,94699.0,0.009]
[1736360482331,0.052804,94712.0,94711.0,0.3608]
[1736360482523,0.052804,94712.0,94700.0,0.052811]
[1736360482722,0.052804,94712.0,94701.0,0.05281]
[1736360482723,0.05281,94702.0,94701.0,0.05281]
[1736360483042,0.052811,94700.0,94699.0,0.009]
[1736360483421,0.12866779,94709.0,94698.0,0.052812]
[1736360483733,0.052811,94700.0,94699.0,1.5]
[1736360484126,0.053811,94700.0,94699.0,1.506]
[1736360484630,0.053811,94700.0,94699.0,0.006]
[1736360484824,0.052812,94698.0,94695.0,0.052813]
[1736360485026,0.052812,94698.0,94689.0,0.052817]
[1736360485237,0.052812,94698.0,94697.0,1.8608]
[1736360485833,0.052817,94689.0,94688.0,0.3608]
[1736360486328,0.052817,94689.0,94688.0,1.913618]
[1736360486534,0.052817,94689.0,94688.0,1.8608]
[1736360488034,0.052811,94701.0,94689.0,0.052817]
[1736360488227,0.12866779,94710.0,94700.0,0.3608]
[1736360488430,0.05281,94701.0,94700.0,0.3608]